bitfinex-derivatives/quotes_SOLF0:USTF0_20230830
["timestamp","ask_amount","ask_price","bid_price","bid_amount"]
[1693434019043,72.84,20.81,20.802,72.84]
[1693434019239,19.35952863,20.809,20.802,72.84]
[1693434020439,72.84,20.81,20.802,72.84]
[1693434052072,72.84,20.809,20.802,14.42]
[1693434074812,72.84,20.812,20.805,72.84]
[1693434075001,19.36837699,20.811,20.805,72.84]
[1693434082112,0.78007761,20.81,20.805,72.84]
[1693434082316,19.36837699,20.809,20.807,14.42]
[1693434086520,0.78007761,20.81,20.807,14.42]
[1693434092021,0.78007761,20.81,20.807,87.26]
[1693434101927,0.78007761,20.81,20.809,14.41]
[1693434103625,72.84,20.818,20.809,72.84]
[1693434103924,72.84,20.818,20.81,72.84]
[1693434121938,72.84,20.819,20.811,72.84]
[1693434122241,72.84,20.819,20.811,114.23477452]
[1693434125853,72.84,20.819,20.812,14.41]
[1693434126145,72.84,20.822,20.815,72.84]
[1693434128346,26.83745562,20.826,20.818,72.84]
[1693434128347,72.84,20.826,20.818,72.84]
[1693434128553,19.36080888,20.825,20.818,72.84]
[1693434131953,19.36080888,20.825,20.819,72.84]
[1693434132152,19.36080888,20.824,20.819,72.84]
[1693434132346,72.84,20.827,20.819,72.84]
[1693434132547,19.36181831,20.826,20.819,72.84]
[1693434133642,72.84,20.829,20.822,72.84]
[1693434141958,72.84,20.828,20.821,72.84]
[1693434151960,72.84,20.828,20.817,38.88238117]
[1693434151961,72.84,20.826,20.818,72.84]
[1693434162069,72.84,20.827,20.82,72.84]
[1693434171984,72.84,20.828,20.82,72.84]
[1693434174381,72.84,20.828,20.82,87.25]
[1693434181985,72.84,20.828,20.821,72.84]
[1693434183683,72.84,20.828,20.821,72.9]
[1693434191995,72.84,20.829,20.821,72.9]
[1693434200697,19.35315991,20.828,20.821,72.9]
[1693434200990,72.84,20.829,20.821,72.9]
[1693434201197,19.35316508,20.828,20.821,72.9]
[1693434211604,72.84,20.829,20.821,72.9]
[1693434211797,19.35304304,20.828,20.821,72.9]
[1693434211998,19.35304304,20.828,20.822,72.84]
[1693434212393,72.84,20.829,20.822,72.84]
[1693434222012,99.48501986,20.831,20.823,72.84]
[1693434222311,19.35274928,20.83,20.823,72.84]
[1693434226618,99.48501986,20.831,20.823,72.84]
[1693434226815,19.35243701,20.83,20.823,72.84]
[1693434236822,19.35243701,20.83,20.824,14.41]
[1693434251936,19.35243701,20.83,20.826,14.4]
[1693434252137,19.35243701,20.829,20.826,14.4]
[1693434252332,72.84,20.832,20.826,14.4]
[1693434252537,19.35130482,20.831,20.826,14.4]
[1693434252937,19.35130482,20.831,20.825,72.84]
[1693434261951,72.84,20.83,20.822,72.84]
[1693434262146,19.35130482,20.829,20.822,72.84]
[1693434281974,72.84,20.828,20.821,34.7353617]
[1693434282268,19.35130482,20.827,20.821,34.7353617]
[1693434286471,19.35130482,20.827,20.82,107.9994]
[1693434286672,72.84,20.828,20.82,107.9994]
[1693434287074,19.35337738,20.827,20.82,107.9994]
[1693434290376,72.84,20.828,20.82,107.9994]
[1693434291976,72.84,20.828,20.821,72.84]
[1693434301376,72.84,20.828,20.807,276.80441193]
[1693434301377,72.84,20.823,20.815,72.84]
[1693434301676,72.84,20.819,20.813,20.1762]
[1693434301881,19.35341117,20.818,20.813,20.1762]
[1693434302177,92.19341117,20.818,20.813,20.1762]
[1693434302378,19.35341117,20.817,20.813,20.1762]
[1693434303976,72.84,20.815,20.807,72.84]
[1693434304178,72.84,20.812,20.805,14.41]
[1693434308785,72.84,20.814,20.807,72.84]
[1693434329106,72.84,20.811,20.803,92.7451]
[1693434332116,72.84,20.81,20.803,19.9051]
[1693434340513,72.84,20.809,20.803,19.9051]
[1693434343315,72.84,20.809,20.802,72.84]
[1693434344010,72.84,20.809,20.801,72.84]
[1693434351912,72.84,20.807,20.8,54.52838627]
[1693434352119,72.84,20.807,20.801,7.99455389]
[1693434356315,72.84,20.807,20.802,14.42]
[1693434356622,72.84,20.81,20.802,72.84]
[1693434357219,72.84,20.814,20.807,14.42]
[1693434361820,72.84,20.816,20.809,72.84]
[1693434362016,19.4467,20.823,20.812,72.84]
[1693434362017,72.84,20.819,20.812,72.84]
[1693434362222,19.36717458,20.818,20.812,72.84]
[1693434362424,72.84,20.819,20.812,72.84]
[1693434367427,19.36164687,20.818,20.812,72.84]
[1693434367924,19.36164687,20.818,20.812,87.26]
[1693434368820,19.36164687,20.818,20.812,72.84]
[1693434369023,19.36164687,20.818,20.812,87.26]
[1693434370227,19.36164687,20.818,20.812,72.84]
[1693434372033,19.36164687,20.818,20.811,21.6779]
[1693434372034,72.84,20.817,20.811,21.6779]
[1693434372231,72.84,20.817,20.81,72.9]
[1693434378735,72.84,20.817,20.81,72.84]
[1693434379734,72.84,20.817,20.81,72.9]
[1693434392042,72.84,20.82,20.814,14.42]
[1693434392242,19.36140076,20.819,20.814,14.42]
[1693434394742,72.84,20.82,20.814,14.42]
[1693434395042,19.36144403,20.819,20.814,14.42]
[1693434397343,72.84,20.82,20.814,14.42]
[1693434400542,72.84,20.821,20.814,14.42]
[1693434400737,19.3613655,20.82,20.814,14.42]
[1693434411953,19.3613655,20.82,20.814,72.84]
[1693434412152,19.3613655,20.819,20.814,72.84]
[1693434412353,72.84,20.822,20.814,72.84]
[1693434412548,19.36119602,20.821,20.814,72.84]
[1693434419551,19.36119602,20.821,20.814,87.25]
[1693434425565,19.36119602,20.821,20.814,72.84]
[1693434430570,19.36119602,20.821,20.815,72.84]
[1693434431970,92.20119602,20.821,20.814,14.41]
[1693434432169,19.36119602,20.82,20.814,14.41]
[1693434436369,19.36119602,20.82,20.813,72.84]
[1693434442076,72.84,20.819,20.812,87.25]
[1693434442276,19.36119602,20.818,20.812,72.84]
[1693434442577,19.36119602,20.818,20.812,87.25]
[1693434442774,19.36119602,20.818,20.812,72.84]
[1693434442975,19.36119602,20.818,20.812,87.25]
[1693434443476,19.36119602,20.818,20.812,72.84]
[1693434443773,19.36119602,20.818,20.812,87.25]
[1693434443971,19.36119602,20.818,20.812,72.84]
[1693434444975,19.36119602,20.818,20.812,87.25]
[1693434445172,19.36119602,20.818,20.812,72.84]
[1693434446180,19.36119602,20.818,20.812,87.25]
[1693434446378,19.36119602,20.818,20.812,72.84]
[1693434468302,19.36119602,20.818,20.812,87.25]
[1693434468500,19.36119602,20.818,20.812,72.84]
[1693434468692,19.36119602,20.818,20.812,87.25]
[1693434468913,19.36119602,20.818,20.812,72.84]
[1693434469096,19.36119602,20.818,20.812,87.25]
[1693434469295,19.36119602,20.818,20.812,72.84]
[1693434469498,19.36119602,20.818,20.812,87.25]
[1693434469699,19.36119602,20.818,20.812,72.84]
[1693434470002,19.36119602,20.818,20.812,87.25]
[1693434470195,19.36119602,20.818,20.812,72.84]
[1693434470399,19.36119602,20.818,20.812,87.25]
[1693434470599,19.36119602,20.818,20.812,72.84]
[1693434470804,19.36119602,20.818,20.812,87.25]
[1693434471008,19.36119602,20.818,20.812,72.84]
[1693434471199,19.36119602,20.818,20.812,87.25]
[1693434471398,19.36119602,20.818,20.812,72.84]
[1693434471597,19.36119602,20.818,20.812,87.25]
[1693434471899,19.36119602,20.818,20.812,72.84]
[1693434472102,19.36119602,20.818,20.812,87.25]
[1693434472302,19.36119602,20.818,20.812,72.84]
[1693434472500,19.36119602,20.818,20.812,87.25]
[1693434472701,19.36119602,20.818,20.812,72.84]
[1693434472902,19.36119602,20.818,20.812,87.25]
[1693434473197,19.36119602,20.818,20.812,72.84]
[1693434473401,19.36119602,20.818,20.812,87.25]
[1693434473704,19.36119602,20.818,20.812,72.84]
[1693434481810,19.36119602,20.818,20.812,87.25]
[1693434482005,19.36119602,20.818,20.812,72.84]
[1693434482206,19.36119602,20.818,20.812,87.25]
[1693434482407,19.36119602,20.818,20.812,72.84]
[1693434482707,19.36119602,20.818,20.812,87.25]
[1693434483108,19.36119602,20.818,20.812,72.84]
[1693434483305,19.36119602,20.818,20.812,87.25]
[1693434483507,19.36119602,20.818,20.812,72.84]
[1693434483806,19.36119602,20.818,20.812,87.25]
[1693434484006,19.36119602,20.818,20.812,72.84]
[1693434484205,19.36119602,20.818,20.812,87.25]
[1693434484413,19.36119602,20.818,20.812,72.84]
[1693434484606,19.36119602,20.818,20.812,87.25]
[1693434485106,19.36119602,20.818,20.812,72.84]
[1693434485609,19.36119602,20.818,20.812,87.25]
[1693434485805,19.36119602,20.818,20.812,72.84]
[1693434486001,19.36119602,20.818,20.812,87.25]
[1693434486205,19.36119602,20.818,20.812,72.84]
[1693434486404,19.36119602,20.818,20.812,87.25]
[1693434486604,19.36119602,20.818,20.812,72.84]
[1693434486804,19.36119602,20.818,20.812,87.25]
[1693434487005,19.36119602,20.818,20.812,72.84]
[1693434487203,19.36119602,20.818,20.812,87.25]
[1693434487604,19.36119602,20.818,20.812,72.84]
[1693434488304,19.36119602,20.818,20.812,87.25]
[1693434488505,19.36119602,20.818,20.812,72.84]
[1693434488705,19.36119602,20.818,20.812,87.25]
[1693434488908,19.36119602,20.818,20.812,72.84]
[1693434489105,19.36119602,20.818,20.812,87.25]
[1693434489308,19.36119602,20.818,20.812,72.84]
[1693434489507,19.36119602,20.818,20.812,87.25]
[1693434489708,19.36119602,20.818,20.812,72.84]
[1693434489907,19.36119602,20.818,20.812,87.25]
[1693434490108,19.36119602,20.818,20.812,72.84]
[1693434490309,19.36119602,20.818,20.812,87.25]
[1693434490504,19.36119602,20.818,20.812,72.84]
[1693434490816,92.20119602,20.818,20.812,14.41]
[1693434491110,19.36119602,20.817,20.81,92.7203]
[1693434493314,19.36119602,20.817,20.812,14.41]
[1693434493515,19.36119602,20.817,20.81,92.7203]
[1693434493716,19.36119602,20.817,20.812,14.41]
[1693434493907,19.36119602,20.817,20.81,92.7203]
[1693434494113,19.36119602,20.817,20.812,14.41]
[1693434494314,19.36119602,20.817,20.81,92.7203]
[1693434494515,19.36119602,20.817,20.812,14.41]
[1693434494915,19.36545002,20.816,20.81,92.7203]
[1693434495117,19.36545002,20.815,20.812,14.41]
[1693434495316,19.36545002,20.814,20.81,92.7203]
[1693434495516,72.84,20.818,20.812,14.41]
[1693434495517,19.36545002,20.813,20.812,14.41]
[1693434495819,19.36545002,20.817,20.812,14.41]
[1693434496014,19.36545002,20.816,20.81,92.7203]
[1693434496315,19.36545002,20.815,20.812,14.41]
[1693434496515,19.36545002,20.814,20.81,92.7203]
[1693434496716,19.36545002,20.813,20.812,14.41]
[1693434497017,19.36545002,20.817,20.81,92.7203]
[1693434497218,19.36545002,20.816,20.812,14.41]
[1693434497421,19.36545002,20.815,20.812,14.41]
[1693434497619,19.36545002,20.814,20.81,92.7203]
[1693434497819,19.36545002,20.813,20.812,14.41]
[1693434498016,19.36545002,20.813,20.81,92.6603]
[1693434498322,72.84,20.818,20.812,14.41]
[1693434498521,72.84,20.818,20.81,92.6603]
[1693434498522,19.36544222,20.817,20.81,92.6603]
[1693434498718,19.36544222,20.817,20.81,92.7203]
[1693434505825,19.36544222,20.817,20.812,14.41]
[1693434506026,19.36544222,20.817,20.81,92.7203]
[1693434507028,19.36544222,20.817,20.811,14.41]
[1693434507228,72.84,20.814,20.81,19.8803]
[1693434507428,19.36544222,20.813,20.81,19.8803]
[1693434507728,19.36544222,20.813,20.81,0.06]
[1693434527337,19.36544222,20.813,20.811,14.42]
[1693434527539,19.36544222,20.813,20.808,37.83669547]
[1693434527838,19.36544222,20.813,20.807,72.84]
[1693434528639,19.36544222,20.813,20.81,0.06]
[1693434532340,19.36544222,20.812,20.81,0.06]
[1693434532539,72.84,20.816,20.81,0.06]
[1693434532740,19.3651965,20.815,20.81,0.06]
[1693434539144,72.84,20.812,20.81,0.06]
[1693434539340,19.3651965,20.811,20.81,0.06]
[1693434539944,19.3651965,20.811,20.802,74.69509783]
[1693434539945,92.2051965,20.811,20.802,50.99699894]
[1693434540138,72.84,20.809,20.802,36.57699894]
[1693434540334,72.84,20.807,20.8,14.42]
[1693434540534,19.3651965,20.806,20.8,14.42]
[1693434547747,72.84,20.807,20.8,14.42]
[1693434561958,72.84,20.805,20.8,14.42]
[1693434565365,72.84,20.805,20.798,72.84]
[1693434566668,72.84,20.8,20.791,72.84]
[1693434566859,72.84,20.8,20.792,8.00459644]
[1693434572065,72.84,20.801,20.793,72.84]
[1693434596179,72.84,20.8,20.793,72.84]
[1693434602184,72.84,20.8,20.792,37.95384615]
[1693434602386,72.84,20.8,20.791,72.84]
[1693434602586,72.84,20.8,20.792,8.00730401]
[1693434605087,29.29556582,20.806,20.796,72.84]
[1693434605088,72.84,20.804,20.796,72.84]
[1693434606493,19.37622859,20.803,20.796,72.84]
[1693434611996,19.37622859,20.803,20.797,72.84]
[1693434612196,19.37622859,20.802,20.797,72.84]
[1693434612398,72.84,20.805,20.797,72.84]
[1693434612593,19.37617168,20.804,20.797,72.84]
[1693434622602,72.84,20.807,20.8,14.43]
[1693434622802,19.37528414,20.806,20.8,14.43]
[1693434626109,19.37528414,20.806,20.8,72.84]
[1693434626303,19.37528414,20.805,20.8,113.21386736]
[1693434626499,72.84,20.808,20.8,113.21386736]
[1693434626702,19.37540599,20.807,20.8,113.21386736]
[1693434632115,19.37540599,20.807,20.802,14.43]
[1693434632310,19.37540599,20.806,20.802,14.43]
[1693434632511,19.37540599,20.805,20.802,14.43]
[1693434632713,19.37540599,20.804,20.802,14.43]
[1693434632911,72.84,20.809,20.802,14.43]
[1693434633115,19.3752691,20.808,20.802,14.43]
[1693434641925,19.3752691,20.808,20.803,72.84]
[1693434642128,28.75787864,20.81,20.803,72.84]
[1693434642425,19.37148376,20.809,20.803,72.84]
[1693434652430,28.75787864,20.81,20.803,72.84]
[1693434652628,19.37116467,20.809,20.803,72.84]
[1693434653921,28.75787864,20.81,20.803,72.84]
[1693434656933,28.75787864,20.81,20.803,46.34]
[1693434663737,28.75787864,20.81,20.803,46.4]
[1693434669142,72.84,20.811,20.803,46.4]
[1693434669342,19.37112525,20.81,20.803,46.4]
[1693434670945,72.84,20.814,20.807,72.84]
[1693434671141,19.3705002,20.813,20.807,72.84]
[1693434671937,19.3705002,20.813,20.809,72.84]
[1693434672143,19.3705002,20.812,20.809,72.84]
[1693434672444,19.3705002,20.811,20.809,72.84]
[1693434672747,72.84,20.819,20.81,72.84]
[1693434672944,19.36793025,20.818,20.812,72.84]
[1693434678340,72.84,20.819,20.812,72.84]
[1693434678536,19.3678729,20.818,20.812,72.84]
[1693434686451,72.84,20.819,20.812,72.84]
[1693434687454,72.84,20.822,20.814,72.84]
[1693434687657,19.36393792,20.821,20.814,72.84]
[1693434701573,19.36393792,20.821,20.816,72.84]
[1693434701772,19.36393792,20.82,20.816,72.84]
[1693434701976,19.36393792,20.819,20.817,72.84]
[1693434702276,72.84,20.824,20.817,72.84]
[1693434702575,19.36403191,20.823,20.817,72.84]
[1693434731804,19.36292469,20.822,20.817,72.84]
[1693434732008,19.36292469,20.821,20.817,72.84]
[1693434732200,19.36292469,20.82,20.817,72.84]
[1693434732502,19.36292469,20.819,20.817,72.84]
[1693434732803,19.36292469,20.818,20.817,72.84]
[1693434733004,19.36292469,20.823,20.817,72.84]
[1693434733695,19.36292469,20.823,20.82,72.84]
[1693434733999,19.36292469,20.822,20.82,72.84]
[1693434734196,19.36292469,20.821,20.82,72.84]
[1693434734398,72.84,20.827,20.82,72.84]
[1693434734601,19.36165381,20.826,20.823,72.84]
[1693434734803,19.36165381,20.825,20.823,72.84]
[1693434735001,72.84,20.831,20.823,72.84]
[1693434735202,19.35973401,20.83,20.823,72.84]
[1693434742011,19.35973401,20.83,20.825,72.84]
[1693434742210,19.35973401,20.829,20.825,72.84]
[1693434742509,72.84,20.832,20.825,72.84]
[1693434742709,19.35514703,20.831,20.825,72.84]
[1693434746606,72.84,20.832,20.825,72.84]
[1693434746810,19.3548663,20.831,20.825,72.84]
[1693434754318,72.84,20.832,20.825,72.84]
[1693434761820,72.84,20.833,20.826,72.84]
[1693434762015,19.35482119,20.832,20.827,72.84]
[1693434762220,72.84,20.834,20.827,72.84]
[1693434762423,19.35482712,20.833,20.827,72.84]
[1693434765417,72.84,20.834,20.827,72.84]
[1693434765615,19.35364178,20.833,20.827,72.84]
[1693434765821,72.84,20.834,20.827,72.84]
[1693434770431,19.35376674,20.833,20.827,72.84]
[1693434771530,72.84,20.836,20.829,72.84]
[1693434771725,19.35366109,20.835,20.829,72.84]
[1693434802058,92.19366109,20.835,20.828,72.84]
[1693434802258,19.35366109,20.834,20.828,72.84]
[1693434805062,72.84,20.833,20.826,72.84]
[1693434805361,19.35366109,20.832,20.826,72.84]
[1693434814969,72.84,20.83,20.824,21.4086]
[1693434815165,19.35366109,20.829,20.824,21.4086]
[1693434822079,92.19366109,20.829,20.824,21.4086]
[1693434822379,19.35366109,20.828,20.822,72.84]
[1693434826580,72.84,20.829,20.822,72.84]
[1693434826880,19.35336113,20.828,20.822,72.84]
[1693434840491,72.84,20.823,20.816,72.95593007]
[1693434841283,19.35806572,20.822,20.816,72.95593007]
[1693434842588,19.35806572,20.822,20.816,72.84]
[1693434843584,0.06,20.821,20.816,72.84]
[1693434848193,0.06,20.821,20.816,72.95593007]
[1693434850090,0.06,20.821,20.82,14.41]
[1693434850295,19.41806572,20.821,20.82,14.41]
[1693434850489,19.35806572,20.821,20.82,14.41]
[1693434850791,72.84,20.829,20.82,72.84]
[1693434850993,19.35320788,20.828,20.822,72.84]
[1693434852190,19.35320788,20.828,20.823,72.84]
[1693434852493,19.35320788,20.827,20.823,72.84]
[1693434852690,72.84,20.831,20.823,72.84]
[1693434852996,19.35326225,20.83,20.823,72.84]
[1693434860196,72.84,20.831,20.823,72.84]
[1693434860497,19.35324995,20.83,20.823,72.84]
[1693434873803,19.35324995,20.83,20.824,14.4]
[1693434923157,19.35324995,20.83,20.823,72.84]
[1693434932055,72.84,20.829,20.821,72.84]
[1693434932259,19.35324995,20.828,20.821,72.84]
[1693434942169,19.35324995,20.827,20.821,72.84]
[1693434942371,19.35324995,20.826,20.821,72.84]
[1693434942572,19.35324995,20.825,20.821,72.84]
[1693434942772,19.35324995,20.824,20.821,72.84]
[1693434942974,101.84783317,20.83,20.821,72.84]
[1693434943170,19.35302622,20.829,20.821,72.84]
[1693434952072,19.35302622,20.829,20.822,72.84]
[1693434953678,19.35302622,20.829,20.822,72.9]
[1693434991911,19.35302622,20.829,20.822,0.06]
[1693434992118,19.35302622,20.829,20.826,72.84]
[1693434992418,19.35302622,20.828,20.826,109.52360407]
[1693434992614,19.35302622,20.827,20.826,109.52360407]
[1693434992916,19.35302622,20.832,20.826,109.52360407]
[1693434993115,19.35302622,20.831,20.826,109.52360407]
[1693434993317,19.35302622,20.83,20.826,109.52360407]
[1693434993517,19.35302622,20.829,20.826,109.52360407]
[1693434993718,19.35302622,20.828,20.826,109.52360407]
[1693434994019,19.35302622,20.827,20.826,109.52360407]
[1693434994319,19.35302622,20.832,20.826,109.52360407]
[1693434999221,19.35302622,20.832,20.826,72.84]
[1693435031952,72.84,20.831,20.824,72.84]
[1693435032152,19.35302622,20.83,20.824,72.84]
[1693435033147,19.35302622,20.83,20.827,72.84]
[1693435033349,19.35302622,20.829,20.827,72.84]
[1693435033549,19.35302622,20.828,20.827,72.84]
[1693435033947,19.35302622,20.834,20.827,72.84]
[1693435034154,19.35302622,20.833,20.827,72.84]
[1693435034352,19.35302622,20.832,20.827,72.84]
[1693435034554,19.35302622,20.831,20.827,72.84]
[1693435034747,19.35302622,20.83,20.827,72.84]
[1693435034943,19.35302622,20.829,20.827,72.84]
[1693435035147,19.35302622,20.828,20.827,72.84]
[1693435035549,19.35302622,20.834,20.827,72.84]
[1693435035748,19.35302622,20.833,20.827,72.84]
[1693435035950,19.35302622,20.832,20.827,72.84]
[1693435036150,19.35302622,20.831,20.827,72.84]
[1693435036355,19.35302622,20.83,20.827,72.84]
[1693435036557,19.35302622,20.829,20.827,72.84]
[1693435036856,19.35302622,20.828,20.827,72.84]
[1693435037354,19.35302622,20.834,20.827,72.84]
[1693435037558,19.35302622,20.833,20.827,72.84]
[1693435037753,19.35302622,20.832,20.827,72.84]
[1693435038052,19.35302622,20.831,20.827,72.84]
[1693435038254,19.35302622,20.83,20.827,72.84]
[1693435038456,19.35302622,20.829,20.827,72.84]
[1693435038653,19.35302622,20.828,20.827,72.84]
[1693435039061,19.35302622,20.834,20.827,72.84]
[1693435039261,19.35302622,20.833,20.827,72.84]
[1693435039458,19.35302622,20.832,20.827,72.84]
[1693435039662,19.35302622,20.831,20.827,72.84]
[1693435039860,19.35302622,20.83,20.827,72.84]
[1693435040061,19.35302622,20.829,20.827,72.84]
[1693435040359,19.35302622,20.828,20.827,72.84]
[1693435040555,19.35302622,20.834,20.827,72.84]
[1693435040763,19.35302622,20.833,20.827,72.84]
[1693435041064,19.35302622,20.832,20.827,72.84]
[1693435041262,19.35302622,20.831,20.827,72.84]
[1693435041464,19.35302622,20.83,20.827,72.84]
[1693435041661,19.35302622,20.829,20.827,72.84]
[1693435041861,19.35302622,20.828,20.827,72.84]
[1693435042063,72.84,20.833,20.826,14.4]
[1693435042264,19.35302622,20.832,20.826,14.4]
[1693435088515,19.35302622,20.832,20.825,72.84]
[1693435092009,72.84,20.831,20.823,72.84]
[1693435092214,19.35302622,20.83,20.823,72.84]
[1693435099220,19.35302622,20.83,20.824,14.4]
[1693435099820,19.35302622,20.83,20.826,72.84]
[1693435100022,19.35302622,20.829,20.826,72.84]
[1693435100320,19.35302622,20.828,20.826,72.84]
[1693435100519,19.35302622,20.827,20.826,72.84]
[1693435100717,19.35302622,20.831,20.826,72.84]
[1693435101015,19.35302622,20.83,20.826,72.84]
[1693435101216,19.35302622,20.829,20.826,72.84]
[1693435101416,19.35302622,20.828,20.826,72.84]
[1693435101717,19.35302622,20.827,20.826,72.84]
[1693435102216,19.35302622,20.831,20.826,72.84]
[1693435112035,19.35302622,20.831,20.826,14.4]
[1693435134844,19.35302622,20.831,20.825,72.84]
[1693435142054,19.35302622,20.831,20.824,87.24]
[1693435149257,19.35302622,20.83,20.824,87.24]
[1693435149461,19.35302622,20.829,20.824,87.24]
[1693435149762,19.35302622,20.828,20.824,87.24]
[1693435149959,19.35302622,20.827,20.824,87.24]
[1693435150153,19.35302622,20.826,20.824,87.24]
[1693435150356,72.84,20.833,20.824,87.24]
[1693435150559,19.35179706,20.832,20.824,87.24]
[1693435182185,19.35179706,20.831,20.824,87.24]
[1693435182385,19.35179706,20.83,20.824,87.24]
[1693435182582,19.35179706,20.829,20.824,87.24]
[1693435182781,19.35179706,20.828,20.824,87.24]
[1693435182977,19.35179706,20.827,20.824,87.24]
[1693435183189,72.84,20.834,20.824,87.24]
[1693435183382,19.35089723,20.833,20.824,87.24]
[1693435192088,92.19089723,20.833,20.824,87.24]
[1693435192290,19.35089723,20.832,20.824,87.24]
[1693435199193,19.35089723,20.832,20.826,14.4]
[1693435201993,19.35089723,20.832,20.828,14.4]
[1693435202192,19.35089723,20.831,20.828,14.4]
[1693435202394,19.35089723,20.83,20.828,14.4]
[1693435202589,19.35089723,20.829,20.828,14.4]
[1693435202796,19.35089723,20.835,20.828,14.4]
[1693435203694,19.35089723,20.835,20.83,72.84]
[1693435204000,19.35089723,20.834,20.83,72.84]
[1693435204200,72.84,20.843,20.833,72.84]
[1693435205698,72.84,20.844,20.837,72.84]
[1693435212003,72.84,20.846,20.839,72.84]
[1693435213505,21.4913,20.847,20.826,34.4269]
[1693435213701,72.84,20.841,20.828,14.4]
[1693435213903,72.84,20.841,20.833,72.84]
[1693435216208,72.84,20.837,20.83,72.84]
[1693435217708,0.06,20.833,20.83,72.84]
[1693435219403,0.06,20.833,20.828,72.84]
[1693435223408,0.06,20.833,20.828,72.95586327]
[1693435231923,0.06,20.833,20.829,72.84]
[1693435246429,72.84,20.837,20.829,72.84]
[1693435247537,0.06,20.833,20.829,72.84]
[1693435251639,28.44417312,20.84,20.832,72.84]
[1693435251640,101.28417312,20.84,20.832,72.84]
[1693435251940,19.34744827,20.839,20.832,72.84]
[1693435257036,101.28417312,20.84,20.832,72.84]
[1693435261946,72.84,20.845,20.837,72.84]
[1693435262147,19.34332476,20.844,20.837,72.84]
[1693435262347,72.84,20.848,20.84,14.4]
[1693435262546,19.34148394,20.847,20.84,14.4]
[1693435264842,72.84,20.848,20.84,14.4]
[1693435269456,72.84,20.848,20.84,14.46]
[1693435272057,72.84,20.85,20.842,72.84]
[1693435281965,72.84,20.851,20.843,72.84]
[1693435293776,72.84,20.854,20.847,72.84]
[1693435302189,72.84,20.855,20.848,72.84]
[1693435312004,92.781,20.858,20.85,72.84]
[1693435316903,27.84780802,20.86,20.853,72.84]
[1693435322011,72.84,20.859,20.852,72.84]
[1693435327014,72.84,20.862,20.855,72.84]
[1693435329819,72.84,20.862,20.856,0.76863754]
[1693435331917,72.84,20.862,20.856,73.60863754]
[1693435333725,20.1062,20.863,20.857,72.84]
[1693435334027,72.84,20.864,20.857,72.84]
[1693435351934,72.84,20.865,20.857,72.84]
[1693435371245,72.84,20.862,20.854,72.84]
[1693435371446,99.66504727,20.862,20.854,72.84]
[1693435372044,72.84,20.861,20.853,72.84]
[1693435379054,72.84,20.855,20.848,72.84]
[1693435382856,72.84,20.858,20.851,72.84]
[1693435385757,500.0,20.86,20.854,14.39]
[1693435385962,72.84,20.861,20.854,14.39]
[1693435388061,26.82504727,20.862,20.857,72.84]
[1693435390669,99.66504727,20.862,20.854,72.84]
[1693435394170,72.84,20.861,20.854,14.39]